bitfinex-derivatives/quotes_ETHF0:USTF0_20240915
["timestamp","ask_amount","ask_price","bid_price","bid_amount"]
[1726438189777,4.5249,2349.8,2349.5,0.42555]
[1726438189971,4.132,2349.8,2349.4,0.7996]
[1726438190272,3.6038,2350.1,2349.8,0.4255]
[1726438190467,3.63325,2350.1,2349.8,0.42549]
[1726438190665,3.63325,2350.1,2349.9,0.7959]
[1726438191171,0.42545,2350.1,2349.9,0.7959]
[1726438191556,0.7763,2350.3,2349.9,0.7959]
[1726438191756,0.42544,2350.2,2349.9,0.7959]
[1726438192372,4.7663,2350.3,2349.6,0.42552]
[1726438192572,0.42547,2350.0,2349.6,1.24762]
[1726438193664,0.42545,2350.1,2349.6,1.24762]
[1726438193971,0.42545,2350.1,2349.7,0.42552]
[1726438195365,6.5278,2350.2,2349.6,0.8221]
[1726438195366,0.42547,2350.0,2349.6,0.8221]
[1726438195572,0.42546,2350.1,2349.7,0.42552]
[1726438195974,0.42546,2350.0,2349.7,0.42552]
[1726438196473,6.5278,2350.2,2349.6,0.8221]
[1726438196766,0.4255,2349.8,2349.4,3.63337]
[1726438196972,0.4255,2349.8,2349.5,1.20815]
[1726438199365,0.83,2349.9,2349.5,0.7826]
[1726438199366,0.42552,2349.7,2349.5,0.7826]
[1726438199766,0.42552,2349.7,2349.5,1.20815]
[1726438199968,0.42552,2349.7,2349.5,0.7826]
[1726438200279,0.42553,2349.7,2349.5,0.7826]
[1726438200472,0.42554,2349.6,2349.5,0.7826]
[1726438201075,0.42553,2349.7,2349.5,0.7826]
[1726438201675,0.42554,2349.6,2349.5,0.7826]
[1726438201873,0.42553,2349.7,2349.5,0.7826]
[1726438202470,0.42555,2349.5,2349.4,3.2078]
[1726438202672,0.42558,2349.4,2349.1,0.7858]
[1726438202981,0.42558,2349.4,2349.1,1.21142]
[1726438203171,0.42558,2349.4,2349.1,0.7858]
[1726438203172,0.42561,2349.2,2349.1,0.7858]
[1726438207584,0.4256,2349.3,2349.1,0.7858]
[1726438207776,0.4134,2349.4,2349.1,0.7858]
[1726438207976,0.42561,2349.2,2349.1,0.7858]
[1726438208285,0.4134,2349.4,2349.1,0.7858]
[1726438208480,0.42561,2349.2,2349.1,0.7858]
[1726438210288,0.42561,2349.3,2349.1,1.21143]
[1726438210586,0.42561,2349.2,2349.1,0.7858]
[1726438212985,0.42565,2349.0,2348.8,3.63348]
[1726438213187,0.42565,2349.0,2348.8,4.03088]
[1726438213384,0.387,2349.1,2348.8,4.03088]
[1726438213785,0.42565,2349.0,2348.8,4.03088]
[1726438213987,0.81264,2349.1,2348.8,4.03088]
[1726438214193,0.42565,2349.0,2348.8,4.03088]
[1726438214587,0.42566,2348.9,2348.8,3.6052]
[1726438215093,3.6125,2349.3,2348.8,3.6052]
[1726438215289,3.6125,2349.3,2348.9,0.42566]
[1726438215486,0.42563,2349.1,2348.9,0.42566]
[1726438218799,4.132,2349.5,2348.9,3.32]
[1726438219093,0.42556,2349.5,2349.3,0.42558]
[1726438219392,0.42558,2349.4,2349.2,0.42559]
[1726438220096,0.4256,2349.3,2349.1,0.42561]
[1726438220294,5.55467521,2349.7,2348.8,3.2078]
[1726438220295,3.32,2349.2,2348.8,3.2078]
[1726438220484,0.42566,2348.9,2348.8,3.2078]
[1726438221091,0.42566,2349.0,2348.8,3.2078]
[1726438221897,0.42566,2348.9,2348.8,3.2078]
[1726438223394,0.7723,2349.2,2348.8,3.2078]
[1726438223587,3.2078,2349.4,2348.8,3.2078]
[1726438223899,0.42561,2349.3,2348.8,3.2078]
[1726438224088,0.42561,2349.2,2348.9,0.42565]
[1726438225095,0.42565,2349.0,2348.7,0.42568]
[1726438225497,3.2078,2349.3,2348.5,3.5956]
[1726438225702,0.42562,2349.2,2348.6,3.32]
[1726438226001,0.42563,2349.1,2348.9,0.42566]
[1726438226495,0.42563,2349.1,2348.6,3.32]
[1726438226496,0.42563,2349.1,2348.8,0.42567]
[1726438226801,0.42565,2349.0,2348.8,0.42567]
[1726438228599,0.42564,2349.1,2348.8,0.42567]
[1726438228992,0.42561,2349.2,2349.0,0.42563]
[1726438229194,0.42561,2349.2,2348.9,0.42565]
[1726438229389,1.06398,2349.3,2348.6,4.4261779]
[1726438229596,1.06398,2349.3,2348.5,4.7017779]
[1726438229597,0.42564,2349.1,2348.5,4.7017779]
[1726438229792,0.42564,2349.1,2348.9,0.42566]
[1726438231313,0.42559,2349.3,2349.1,0.42562]
[1726438232499,0.42559,2349.3,2349.0,0.7953]
[1726438232500,4.95286,2349.5,2349.3,0.42558]
[1726438232699,0.82086,2349.5,2349.3,0.42558]
[1726438232998,0.83825,2349.6,2349.4,0.42557]
[1726438233297,0.83825,2349.6,2349.1,3.32]
[1726438233298,0.4127,2349.6,2349.3,0.42558]
[1726438233493,0.42556,2349.5,2349.3,0.42558]
[1726438233695,0.42556,2349.5,2349.2,0.4256]
[1726438233902,0.42556,2349.5,2349.1,3.32]
[1726438234100,0.42556,2349.5,2349.3,0.42559]
[1726438234991,0.83824,2349.6,2349.3,0.42559]
[1726438235194,0.8218,2349.8,2349.1,6.9109]
[1726438235507,0.4069,2349.8,2349.5,0.42554]
[1726438235708,0.4069,2349.8,2349.6,1.20283]
[1726438236006,4.5131,2350.0,2349.7,0.42551]
[1726438236301,6.5278,2350.3,2349.7,6.5278]
[1726438236302,4.0023,2350.3,2349.7,6.5278]
[1726438236498,4.0023,2350.3,2349.8,0.4255]
[1726438236690,4.0023,2350.3,2349.7,6.5278]
[1726438236691,0.4134,2350.3,2349.7,3.2078]
[1726438236893,0.4134,2350.3,2350.0,0.42545]
[1726438237097,4.96397,2350.5,2350.1,0.7773]
[1726438237098,4.5386,2350.5,2350.1,0.7773]
[1726438237295,0.4134,2350.5,2350.1,1.20274]
[1726438237506,3.2078,2350.6,2350.2,0.42542]
[1726438237704,3.2078,2350.6,2350.1,4.52274]
[1726438238002,4.132,2350.9,2350.4,0.42539]
[1726438238200,0.3856,2351.0,2350.5,3.74536]
[1726438238406,0.3856,2351.0,2350.6,0.4163]
[1726438238611,0.3856,2351.0,2350.6,0.818]
[1726438239506,0.4026,2351.1,2350.6,0.818]
[1726438239898,0.7922,2351.2,2350.6,4.45114]
[1726438240403,3.32,2351.0,2350.6,0.818]
[1726438240698,3.32,2350.8,2350.6,0.818]
[1726438240904,3.32,2350.8,2350.6,0.4017]
[1726438241099,0.39,2350.7,2350.6,0.4017]
[1726438241906,0.39,2350.7,2350.0,6.95325]
[1726438242093,0.8066,2350.7,2350.1,0.782]
[1726438242292,0.42536,2350.6,2350.1,5.62508883]
[1726438242506,0.42538,2350.5,2350.1,0.782]
[1726438243604,3.7454,2350.4,2350.1,0.782]
[1726438243802,3.7454,2350.4,2350.1,0.3852]
[1726438243803,4.1266,2350.4,2350.1,0.3852]
[1726438244007,0.39,2350.3,2350.1,0.3852]
[1726438247212,0.81541,2350.3,2350.1,0.3852]
[1726438248507,0.42543,2350.2,2350.1,0.3852]
[1726438248711,0.42543,2350.2,2349.8,0.3878]
[1726438248712,0.42544,2350.2,2349.8,0.3878]
[1726438248913,0.42545,2350.1,2349.8,0.7827]
[1726438249116,0.42547,2350.0,2349.8,0.7827]
[1726438249306,0.39,2350.3,2349.8,0.7827]
[1726438249307,0.42545,2350.1,2349.8,0.7827]
[1726438250207,0.42545,2350.1,2349.7,0.42552]
[1726438250208,0.42551,2349.8,2349.5,0.4011]
[1726438250410,0.42552,2349.8,2349.5,0.7881]
[1726438250708,3.32,2350.0,2349.5,0.7881]
[1726438250909,0.7982,2349.9,2349.5,0.7881]
[1726438251117,0.42554,2349.6,2349.5,0.7881]
[1726438251301,0.7982,2349.9,2349.1,3.2078]
[1726438251302,3.32,2349.7,2349.1,3.2078]
[1726438251510,0.84236,2349.5,2349.1,4.42152]
[1726438252816,0.42557,2349.4,2349.1,4.42152]
[1726438253515,0.4168,2349.5,2349.1,3.9959]
[1726438253716,0.42558,2349.4,2349.1,3.9959]
[1726438254111,1.41100723,2350.0,2349.1,3.9959]
[1726438254112,1.06376,2349.8,2349.1,3.9959]
[1726438254309,0.42557,2349.5,2349.2,0.4256]
[1726438254520,0.42557,2349.4,2349.2,0.4256]
[1726438258422,0.42554,2349.6,2349.4,0.42557]
[1726438258720,0.42552,2349.7,2349.5,0.42554]
[1726438258919,0.42552,2349.7,2349.6,0.7635]
[1726438260318,3.6103,2349.8,2349.3,0.81578]
[1726438260516,1.06385,2349.6,2349.3,0.7957]
[1726438260819,0.42557,2349.4,2349.3,0.3836]
[1726438261014,0.42557,2349.4,2349.3,0.80919]
[1726438262218,1.06392,2349.5,2348.9,3.6199]
[1726438262517,0.42561,2349.2,2349.0,0.42563]
[1726438262723,0.42561,2349.2,2349.0,0.42564]
[1726438262915,0.42561,2349.2,2349.1,0.42563]
[1726438263223,0.4256,2349.3,2349.1,0.42563]
[1726438263520,0.42563,2349.1,2348.9,1.25365]
[1726438263823,0.42564,2349.0,2348.9,0.828]
[1726438264012,3.32,2349.3,2348.7,0.42569]
[1726438264013,3.2078,2349.2,2348.7,0.42569]
[1726438264319,0.42565,2349.0,2348.8,0.4087]
[1726438266512,3.2078,2349.2,2348.8,0.83438]
[1726438266513,0.42563,2349.1,2348.8,0.83438]
[1726438267321,3.2078,2349.2,2348.8,0.4087]
[1726438267624,0.42566,2348.9,2348.6,0.42571]
[1726438267826,0.42566,2348.9,2348.6,0.83541]
[1726438268030,3.32,2348.9,2348.6,0.4097]
[1726438268224,3.32,2348.7,2348.1,3.2078]
[1726438268422,0.42572,2348.6,2348.2,0.42579]
[1726438268724,0.42574,2348.5,2348.2,0.42579]
[1726438268920,3.32,2348.7,2348.1,1.20189]
[1726438269121,0.42577,2348.4,2348.2,3.2078]
[1726438269325,0.42577,2348.4,2348.1,0.7761]
[1726438269527,0.82917,2348.4,2348.1,1.20191]
[1726438269723,0.82917,2348.4,2348.1,0.7761]
[1726438269724,0.42578,2348.3,2348.1,0.7761]
[1726438270022,0.82916,2348.4,2348.1,0.7761]
[1726438270229,0.82916,2348.4,2348.1,1.20191]
[1726438270818,0.82916,2348.4,2348.1,0.7761]
[1726438271221,0.82916,2348.4,2348.1,1.20191]
[1726438271623,3.32,2348.7,2348.1,1.20189]
[1726438271826,0.42575,2348.5,2348.1,1.20189]
[1726438272025,0.3884,2348.6,2348.1,1.20189]
[1726438272026,0.81412,2348.6,2348.1,0.7761]
[1726438272222,0.42575,2348.5,2348.1,1.2019]
[1726438272426,0.42575,2348.4,2348.1,1.2019]
[1726438273530,0.42576,2348.4,2348.1,0.4258]
[1726438273732,0.3884,2348.6,2348.1,0.4258]
[1726438274027,0.42576,2348.4,2348.1,0.4258]
[1726438274238,3.32,2348.4,2348.1,0.3947]
[1726438274431,3.32,2348.4,2348.0,0.4013]
[1726438274432,0.42581,2348.1,2348.0,0.4013]
[1726438274729,0.3968,2348.3,2347.7,0.3947]
[1726438274730,3.32,2348.2,2347.7,0.3947]
[1726438274934,3.74584,2347.9,2347.7,0.3947]
[1726438275131,0.83494,2348.0,2347.7,0.82058]
[1726438275528,0.42585,2347.9,2347.7,0.3947]
[1726438276025,0.42586,2347.8,2347.5,0.42591]
[1726438276222,0.42591,2347.6,2347.3,0.42595]
[1726438276430,0.42591,2347.6,2347.4,0.401]
[1726438276732,0.8114,2347.8,2347.4,0.401]
[1726438276933,0.4259,2347.7,2347.4,0.401]
[1726438277131,0.4259,2347.6,2347.4,0.401]
[1726438277522,0.4259,2347.6,2347.0,4.0285]
[1726438277733,0.42594,2347.4,2347.0,4.4359]
[1726438277928,0.4171,2347.5,2347.0,4.0099]
[1726438278124,0.4171,2347.5,2347.1,0.42599]
[1726438278125,0.84302,2347.5,2347.1,0.42599]
[1726438278623,0.84303,2347.5,2347.1,0.42599]
[1726438278945,7.3398,2347.9,2347.0,7.3299]
[1726438279233,0.42587,2347.8,2347.4,0.42592]
[1726438279437,0.42587,2347.8,2347.5,1.24902]
[1726438279734,0.42588,2347.7,2347.5,0.8231]
[1726438280235,3.2078,2347.9,2347.5,0.8231]
[1726438280429,0.42588,2347.7,2347.5,0.8231]
[1726438282534,3.2078,2347.9,2347.5,1.249]
[1726438282729,0.42589,2347.7,2347.5,0.8231]
[1726438282945,3.2078,2347.9,2347.5,0.8231]
[1726438283436,0.42589,2347.7,2347.5,0.8231]
[1726438283631,0.4259,2347.6,2347.5,0.8231]
[1726438283827,3.32,2347.8,2347.5,1.24901]
[1726438283828,0.42589,2347.7,2347.5,1.24901]
[1726438291748,0.4259,2347.6,2347.5,1.24901]
[1726438292042,0.42589,2347.7,2347.5,1.24901]
[1726438292234,3.32,2347.8,2347.5,1.24901]
[1726438292235,0.4259,2347.6,2347.5,1.24901]
[1726438292843,0.4259,2347.6,2347.5,0.8231]
[1726438293040,0.42595,2347.3,2346.8,3.2078]
[1726438293341,3.32,2347.0,2346.8,1.22923]
[1726438293646,3.74601,2347.0,2346.8,1.22923]
[1726438293942,3.74601,2347.0,2346.8,0.8032]
[1726438294246,3.74601,2347.0,2346.8,1.22924]
[1726438295042,0.4215,2347.1,2346.8,1.22924]
[1726438295242,3.32,2347.0,2346.8,0.8032]
[1726438295449,3.32,2347.0,2346.2,3.2078]
[1726438295634,0.42604,2346.9,2346.3,1.64242]
[1726438295843,0.42605,2346.8,2346.3,5.75701073]
[1726438296144,0.42605,2346.8,2346.3,5.35131073]
[1726438296145,3.32,2346.8,2346.3,5.35131073]
[1726438296442,0.4075,2346.7,2346.3,1.23673]
[1726438296644,0.83357,2346.7,2346.3,0.8106]
[1726438296845,0.4075,2346.7,2346.3,0.8106]
[1726438297046,7.33421,2347.0,2346.5,0.4261]
[1726438297238,0.42604,2346.8,2346.3,0.8106]
[1726438297444,3.74604,2346.8,2346.3,0.8106]
[1726438297645,3.32,2346.8,2346.3,1.23672]
[1726438297843,3.32,2346.8,2346.3,0.8106]
[1726438298045,3.32,2346.6,2346.3,0.8106]
[1726438298350,3.32,2346.6,2346.3,0.4052]
[1726438298549,0.7948,2346.7,2346.3,0.83133]
[1726438298849,3.7004,2347.0,2346.4,0.3869]
[1726438299048,3.7004,2347.0,2346.6,0.42608]
[1726438299250,3.7004,2347.0,2346.5,3.2078]
[1726438299251,4.12641,2347.0,2346.5,3.2078]
[1726438299448,4.12641,2347.0,2346.5,0.42609]
[1726438299657,3.7004,2347.0,2346.5,0.42609]
[1726438300450,3.55485188,2347.3,2346.4,4.118]
[1726438300451,3.32,2347.2,2346.4,4.118]
[1726438300644,3.32,2347.2,2346.6,3.63387]
[1726438300645,3.74598,2347.2,2346.6,3.63387]
[1726438300848,3.74597,2347.2,2346.7,0.42605]
[1726438301048,3.74597,2347.2,2346.8,0.3821]
[1726438301251,3.74597,2347.2,2346.8,0.769]
[1726438301958,0.42599,2347.1,2346.8,0.769]
[1726438302257,3.74598,2347.2,2346.8,0.769]
[1726438304441,3.32,2347.2,2346.8,0.769]
[1726438304645,3.74598,2347.2,2346.8,0.769]
[1726438305945,3.74598,2347.2,2346.8,1.19504]
[1726438306556,3.74598,2347.2,2346.8,0.769]
[1726438306954,0.426,2347.1,2346.8,0.769]
[1726438307153,3.6139,2347.3,2346.4,0.4111]
[1726438307154,0.42604,2346.9,2346.4,0.4111]
[1726438307455,4.1213,2346.8,2346.5,0.42609]
[1726438307662,0.8013,2346.8,2346.4,0.4066]
[1726438307957,0.8013,2346.8,2346.6,0.42606]
[1726438308151,3.7197,2347.0,2346.7,0.42606]
[1726438308354,3.7197,2347.0,2346.7,0.42605]
[1726438308555,3.7197,2347.0,2346.8,0.42604]
[1726438308947,3.2078,2347.3,2346.8,0.42604]
[1726438308948,7.3398,2347.6,2346.9,4.2608]
[1726438309158,7.3398,2347.6,2347.3,0.42595]
[1726438309352,7.3398,2347.6,2347.0,6.5278]
[1726438309353,3.2078,2347.6,2347.0,6.5278]
[1726438309555,1.65569,2347.7,2347.5,0.42592]
[1726438309556,0.4215,2347.7,2347.5,0.42592]
[1726438309752,4.03115,2347.9,2347.5,0.4259]
[1726438309952,4.03115,2347.9,2347.6,0.4066]
[1726438310158,0.42586,2347.8,2347.6,0.4066]
[1726438310556,3.6053,2347.9,2347.6,0.4066]
[1726438310756,0.4215,2348.0,2347.6,3.6144]
[1726438311359,0.4215,2348.0,2347.8,0.42585]
[1726438311659,3.7175,2348.2,2347.9,0.42584]
[1726438311861,0.4258,2348.2,2347.8,0.42585]
[1726438312064,0.4258,2348.2,2347.9,0.42584]
[1726438312561,0.4258,2348.2,2347.6,6.9344]
[1726438312562,3.5947,2348.3,2348.0,0.42582]
[1726438312757,3.5947,2348.3,2347.9,0.42584]
[1726438312966,4.02048,2348.3,2347.6,3.6144]
[1726438313161,4.02048,2348.3,2347.8,0.42585]
[1726438313554,3.32,2348.2,2347.7,0.42587]
[1726438313754,3.32,2348.2,2347.8,0.42586]
[1726438313755,3.7458,2348.2,2347.8,0.42586]
[1726438313958,3.5947,2348.3,2348.0,0.42581]
[1726438313959,0.3869,2348.3,2348.0,0.42581]
[1726438314262,0.3869,2348.3,2348.0,0.42582]
[1726438314562,0.4001,2348.5,2348.0,6.5278]
[1726438314766,7.452,2348.8,2347.6,1.68023307]
[1726438314767,4.132,2348.8,2348.3,3.2078]
[1726438314956,4.132,2348.8,2348.7,0.4257]
[1726438315273,4.132,2349.4,2348.7,3.2078]
[1726438315463,3.7247,2349.6,2349.0,0.42564]
[1726438315772,3.32,2349.4,2349.0,0.42564]
[1726438316154,3.32,2349.4,2348.8,1.24347]
[1726438316358,3.32,2349.0,2348.5,0.42572]
[1726438316564,3.32,2349.0,2348.4,7.78254]
[1726438316754,3.32,2348.8,2348.4,7.3568]
[1726438316962,3.32,2348.8,2348.4,3.2078]
[1726438317163,3.7143,2348.8,2348.3,0.4193]
[1726438317361,3.32,2348.6,2348.3,0.4193]
[1726438317557,3.32,2348.6,2347.9,0.42583]
[1726438317558,3.32,2348.4,2347.9,0.42583]
[1726438317759,3.32,2348.4,2347.9,0.84513]
[1726438318057,0.42573,2348.6,2347.9,0.84513]
[1726438318965,0.4056,2348.5,2347.9,0.84513]
[1726438319167,0.4056,2348.5,2348.0,0.42582]
[1726438323567,3.2078,2348.7,2347.9,0.4193]
[1726438323775,3.63351,2348.7,2348.2,0.42578]
[1726438324065,0.42572,2348.6,2348.2,0.42578]
[1726438324564,3.2078,2348.7,2347.9,0.4193]
[1726438324760,3.6335,2348.7,2348.3,0.42576]
[1726438325060,3.6335,2348.7,2348.4,0.4139]
[1726438326068,3.63351,2348.7,2348.4,0.4139]
[1726438326365,0.42572,2348.6,2348.3,0.42576]
[1726438326562,3.2078,2348.7,2347.9,0.4193]
[1726438326563,0.42574,2348.5,2347.9,0.4193]
[1726438326757,0.42574,2348.5,2348.1,0.42579]
[1726438327153,7.2978,2348.7,2348.1,0.42579]
[1726438327154,0.42576,2348.4,2348.1,0.42579]
[1726438327665,0.42575,2348.5,2348.1,0.42579]
[1726438328060,0.42575,2348.4,2348.1,0.42579]
[1726438328762,7.2978,2348.7,2347.9,0.4193]
[1726438328963,1.0643,2348.6,2347.9,0.4193]
[1726438329158,0.42579,2348.2,2347.9,0.84513]
[1726438329363,0.42583,2348.0,2347.7,0.82777]
[1726438329569,1.06444,2348.3,2347.8,0.42586]
[1726438329570,0.80552,2348.1,2347.8,0.42586]
[1726438329970,0.3797,2348.1,2347.5,3.2078]
[1726438330166,0.42589,2347.7,2347.5,3.2078]
[1726438330368,0.42587,2347.8,2347.5,0.42591]
[1726438330562,0.42585,2347.9,2347.6,0.42589]
[1726438330866,7.6775,2348.1,2347.5,0.4259]
[1726438331165,0.42586,2347.9,2347.6,0.4259]
[1726438331568,0.42586,2347.8,2347.6,0.4259]
[1726438331767,0.42586,2347.9,2347.6,0.4259]
[1726438332169,0.42585,2347.9,2347.6,0.42589]
[1726438332367,0.42584,2347.9,2347.6,0.42589]
[1726438332569,0.42584,2347.9,2347.4,0.4136]
[1726438332869,0.42584,2347.9,2347.7,0.42588]
[1726438333473,0.42584,2347.9,2346.9,4.149]
[1726438333474,11.557,2347.8,2346.9,4.149]
[1726438333773,4.09,2347.4,2346.8,4.0012]
[1726438333961,0.42597,2347.2,2346.8,4.0012]
[1726438334158,0.81666,2347.3,2346.9,0.42602]
[1726438334469,3.63372,2347.5,2347.1,0.42598]
[1726438334664,3.63373,2347.5,2347.0,5.18121973]
[1726438334864,3.63373,2347.5,2347.0,0.426]
[1726438335064,3.2078,2347.5,2347.2,0.42597]
[1726438335264,3.2078,2347.5,2347.3,0.4181]
[1726438335666,3.2078,2347.5,2347.4,0.81933]
[1726438336465,3.2078,2347.5,2347.4,0.3934]
[1726438336664,3.2078,2347.5,2347.4,0.81933]
[1726438336873,3.2078,2347.5,2347.4,0.3934]
[1726438337175,3.2078,2347.5,2347.4,0.81933]
[1726438337668,3.2078,2347.5,2347.4,5.07933]
[1726438338774,7.76564,2348.0,2347.6,0.42589]
[1726438338975,3.63364,2348.0,2347.6,0.42589]
[1726438339276,0.42584,2347.9,2347.6,0.42589]
[1726438339471,0.42584,2347.9,2347.5,0.42591]
[1726438340571,0.42587,2347.8,2347.5,0.42591]
[1726438340762,0.42589,2347.7,2347.4,0.3934]
[1726438340963,5.15464,2347.9,2347.4,0.3934]
[1726438341168,0.42587,2347.8,2347.4,0.81932]
[1726438341574,0.42587,2347.8,2347.4,0.3934]
[1726438341869,4.51585,2347.9,2347.5,0.4259]
[1726438342076,4.51586,2347.9,2347.5,0.4259]
[1726438342268,4.51586,2347.9,2347.6,0.42589]
[1726438343464,3.2078,2348.0,2347.8,0.42585]
[1726438343671,3.63364,2348.0,2347.4,3.6012]
[1726438343971,3.63364,2348.0,2347.8,0.42586]
[1726438343972,6.95364,2348.0,2347.8,0.42586]
[1726438344172,0.42585,2347.9,2347.4,3.6012]
[1726438344573,6.95364,2348.0,2347.7,0.42587]
[1726438344776,6.95364,2348.0,2347.8,0.4168]
[1726438344977,3.74584,2348.0,2347.8,0.4168]
[1726438346666,6.5278,2348.0,2347.6,0.42589]
[1726438346865,0.42589,2347.7,2347.5,0.82481]
[1726438347069,3.32,2347.8,2347.6,0.4259]
[1726438348272,3.74586,2347.8,2347.6,0.4259]
[1726438348971,8.53171,2347.7,2347.1,4.149]
[1726438349185,8.53171,2347.7,2347.0,0.3989]
[1726438349186,0.42599,2347.1,2347.0,0.3989]
[1726438349367,0.42599,2347.1,2346.8,0.42604]
[1726438349566,3.32,2347.0,2346.8,0.42604]
[1726438349764,3.32,2347.1,2347.0,0.42599]
[1726438350179,3.32,2347.1,2346.9,0.42601]
[1726438351281,3.32,2347.1,2346.9,0.42602]
[1726438351978,3.32,2347.1,2346.8,0.42604]
[1726438352181,3.32,2347.0,2346.7,3.2078]
[1726438352378,0.426,2347.1,2346.8,0.42604]
[1726438353071,3.32,2347.2,2346.7,3.2078]
[1726438353072,0.42601,2347.0,2346.7,3.63385]
[1726438353569,0.3842,2347.1,2346.7,3.2078]
[1726438353570,3.32,2346.9,2346.7,3.2078]
[1726438353880,3.32,2346.9,2346.6,1.21977]
[1726438354177,3.74604,2346.9,2346.6,1.21977]
[1726438356179,0.42605,2346.8,2346.6,0.3989]
[1726438356376,3.32,2346.7,2346.6,0.3989]
[1726438357378,3.32,2346.7,2346.6,0.82498]
[1726438359288,0.83544,2346.8,2346.6,0.82498]
[1726438359488,0.4094,2346.8,2346.6,0.3989]
[1726438359687,0.4094,2346.8,2346.7,0.42606]
[1726438359991,0.4094,2346.8,2346.6,0.82497]
[1726438360377,0.83544,2346.8,2346.6,0.82497]
[1726438360889,0.83546,2346.8,2346.6,0.3989]
[1726438361090,0.83546,2346.8,2346.6,0.82498]
[1726438361285,0.42606,2346.7,2346.5,0.42609]
[1726438361784,0.83545,2346.8,2346.6,0.42607]
[1726438362089,0.4094,2346.8,2346.7,0.42606]
[1726438362292,0.42603,2346.9,2346.7,0.42606]
[1726438362587,0.42598,2347.2,2346.9,0.42602]
[1726438362788,0.42598,2347.2,2347.0,0.42601]
[1726438362989,3.32,2347.4,2346.8,0.7712]
[1726438363186,4.82952,2347.5,2346.8,3.979]
[1726438363484,0.42594,2347.4,2347.1,0.42598]
[1726438363691,0.42594,2347.4,2347.0,0.426]
[1726438363992,0.42594,2347.4,2346.8,3.979]
[1726438364295,0.42594,2347.4,2346.2,3.4218]
[1726438364296,3.74602,2347.0,2346.2,3.4218]
[1726438364586,0.81053,2346.9,2346.6,0.42607]
[1726438364892,0.81053,2346.9,2346.5,1.19729]
[1726438364893,0.42605,2346.8,2346.5,1.19729]
[1726438365288,1.58704,2346.9,2346.5,1.19729]
[1726438365485,1.58703,2346.9,2346.6,0.42608]
[1726438365684,1.161,2346.9,2346.6,0.42608]
[1726438365885,1.58703,2346.9,2346.6,0.42608]
[1726438366388,1.161,2346.9,2346.6,0.42608]
[1726438366782,1.161,2346.9,2346.7,0.42605]
[1726438366783,0.7773,2346.9,2346.7,0.42605]
[1726438366983,0.7773,2346.9,2346.6,0.42607]
[1726438366984,0.3845,2346.9,2346.6,0.42607]
[1726438367285,0.3845,2346.9,2346.6,0.42608]
[1726438367692,0.3845,2346.9,2346.7,0.42606]
[1726438368882,0.3845,2346.9,2346.5,3.979]
[1726438369287,3.2078,2347.2,2346.9,0.42601]
[1726438369604,0.42598,2347.2,2347.0,0.7944]
[1726438370394,0.42596,2347.3,2347.0,1.2204]
[1726438371097,0.42597,2347.2,2347.0,1.2204]
[1726438371492,3.32,2347.4,2347.0,0.7944]
[1726438371697,3.32,2347.4,2347.2,0.42596]
[1726438371698,0.42594,2347.4,2347.2,0.42596]
[1726438371993,0.415,2347.5,2347.2,0.42596]
[1726438372301,0.84092,2347.5,2347.0,0.7944]
[1726438372789,0.84092,2347.5,2347.2,0.42595]
[1726438373297,0.415,2347.5,2347.0,1.8594]
[1726438373498,3.32,2347.8,2347.1,6.5278]
[1726438373793,3.32,2347.8,2347.4,0.42593]
[1726438373794,3.74589,2347.7,2347.4,0.42593]
[1726438373992,3.74589,2347.7,2347.5,0.42592]
[1726438374394,3.74589,2347.7,2347.4,0.42592]
[1726438374797,1.1976,2347.8,2347.5,0.42591]
[1726438374798,1.62348,2347.8,2347.5,0.42591]
[1726438374990,1.62348,2347.8,2347.1,3.2078]
[1726438374991,3.32,2347.7,2347.1,3.2078]
[1726438375197,3.32,2347.7,2347.4,0.42592]
[1726438375198,3.74589,2347.7,2347.4,0.42592]
[1726438375496,3.32,2347.7,2347.4,0.42592]
[1726438375994,3.32,2347.7,2347.5,0.42591]
[1726438377196,1.62347,2347.8,2347.5,0.42591]
[1726438377602,0.42588,2347.7,2347.4,0.42592]
[1726438378992,0.42588,2347.7,2347.1,3.2078]
[1726438379202,0.42588,2347.7,2347.5,0.42592]
[1726438380608,0.4259,2347.6,2347.4,0.42592]
[1726438380799,0.42589,2347.7,2347.4,0.42592]
[1726438380997,0.42589,2347.7,2347.5,0.42592]
[1726438382699,2.26227,2347.8,2347.1,3.2078]
[1726438382896,3.74589,2347.7,2347.5,0.42591]
[1726438383102,0.42589,2347.7,2347.5,0.42591]
[1726438383804,0.3978,2347.8,2347.2,4.38493]
[1726438384103,0.42585,2347.9,2347.7,0.42588]
[1726438384310,4.5458,2348.1,2347.5,1.06479]
[1726438384609,0.4138,2348.1,2348.0,0.42583]
[1726438384814,0.20922481,2348.4,2348.2,0.42579]
[1726438385010,0.20922481,2348.4,2347.8,1.06466]
[1726438385011,0.42578,2348.3,2348.1,0.4258]
[1726438385310,0.42578,2348.3,2347.8,1.48406]
[1726438385509,0.20922481,2348.4,2348.3,0.42577]
[1726438385706,0.4138,2348.7,2348.5,0.42572]
[1726438385908,0.4138,2348.7,2348.3,0.42576]